bitfinex/quotes_SOLUSD_20250728
["timestamp","ask_amount","ask_price","bid_price","bid_amount"]
[1753731065146,26.0,185.68,185.65,8.04852307]
[1753731065331,5.41559366,185.69,185.66,0.65]
[1753731065532,0.03,185.69,185.67,0.65]
[1753731065733,5.41541171,185.69,185.62,0.06]
[1753731065932,8.04852307,185.66,185.62,0.06]
[1753731066327,5.38647993,185.65,185.62,0.06]
[1753731066521,8.04852307,185.66,185.62,0.06]
[1753731066946,8.04852307,185.67,185.62,0.06]
[1753731067460,8.04852307,185.67,185.62,0.71]
[1753731067927,31.3861898,185.66,185.62,0.71]
[1753731068123,39.43471287,185.66,185.62,0.06]
[1753731068362,39.43471287,185.66,185.62,0.71]
[1753731068656,39.43471287,185.66,185.63,0.65]
[1753731068839,39.43471287,185.66,185.64,4.00944178]
[1753731069043,39.43471287,185.66,185.65,4.00944178]
[1753731069735,31.3861898,185.66,185.65,4.00944178]
[1753731070452,31.3861898,185.66,185.62,0.71]
[1753731072142,31.3861898,185.66,185.63,0.65]
[1753731073033,31.3861898,185.66,185.62,0.06]
[1753731073238,31.3861898,185.66,185.62,0.71]
[1753731075753,31.3861898,185.66,185.63,0.65]
[1753731076666,5.3861898,185.66,185.62,0.06]
[1753731076869,5.38591643,185.67,185.64,8.69852307]
[1753731077169,5.38591643,185.67,185.63,8.04852307]
[1753731077352,5.38591643,185.67,185.64,0.65]
[1753731078176,5.38591643,185.67,185.63,8.04852307]
[1753731078342,5.38591643,185.67,185.62,0.06]
[1753731078343,5.38591643,185.67,185.62,8.10852307]
[1753731078543,5.38591643,185.67,185.63,0.65]
[1753731079842,5.38591643,185.67,185.64,0.65]
[1753731081174,5.38591643,185.67,185.63,8.04852307]
[1753731081345,149.0,185.68,185.66,8.04852307]
[1753731081544,149.0,185.68,185.67,8.69852307]
[1753731081747,0.03,185.69,185.67,8.69852307]
[1753731082022,0.03,185.69,185.68,0.65]
[1753731082272,5.41531961,185.69,185.66,8.04852307]
[1753731082571,5.41531961,185.69,185.66,0.65]
[1753731082953,0.03,185.69,185.66,0.65]
[1753731083363,0.03,185.69,185.63,48.97092307]
[1753731083677,0.03,185.69,185.65,0.65]
[1753731084871,0.03,185.69,185.66,0.65]
[1753731085075,0.03,185.69,185.63,40.2724]
[1753731085076,8.04852307,185.68,185.63,39.41]
[1753731086086,5.38589971,185.67,185.63,39.41]
[1753731086262,5.38589971,185.67,185.63,38.76]
[1753731086587,5.38589971,185.67,185.63,39.41]
[1753731086964,13.43442278,185.67,185.63,39.41]
[1753731087164,13.43442278,185.67,185.64,0.65]
[1753731087469,8.04852307,185.66,185.63,38.76]
[1753731087791,8.04852307,185.64,185.62,0.06]
[1753731087966,8.04852307,185.63,185.62,0.06]
[1753731088168,13.43558335,185.63,185.62,0.06]
[1753731088492,5.38706028,185.63,185.62,0.06]
[1753731088877,13.43537709,185.64,185.62,0.06]
[1753731089076,5.38685402,185.64,185.62,0.71]
[1753731089281,13.43509069,185.65,185.62,0.71]
[1753731089518,162.43476896,185.66,185.63,0.65]
[1753731090078,162.43476896,185.66,185.64,0.65]
[1753731090273,154.38624589,185.66,185.64,0.65]
[1753731090883,162.43476896,185.66,185.62,0.73]
[1753731091187,149.0,185.66,185.63,0.67]
[1753731091392,149.0,185.66,185.62,8.10852307]
[1753731091573,149.0,185.66,185.64,0.67]
[1753731091973,149.0,185.66,185.65,0.67]
[1753731092581,153.0334088,185.66,185.65,0.67]
[1753731092768,155.0501132,185.66,185.65,0.67]
[1753731093182,6.0501132,185.66,185.65,8.71852307]
[1753731093480,4.0334088,185.66,185.65,8.71852307]
[1753731094493,4.0334088,185.66,185.65,14.105003]
[1753731096770,4.03210223,185.66,185.65,14.105003]
[1753731098992,4.03210223,185.66,185.65,8.71852307]
[1753731100508,4.03210223,185.66,185.65,47.29852307]
[1753731100808,4.03210223,185.66,185.65,44.19108871]
[1753731102971,4.03210223,185.66,185.65,38.58]
[1753731103278,9.03319094,185.66,185.65,38.58]
[1753731103481,14.41938074,185.66,185.62,0.06]
[1753731103696,8.97319094,185.65,185.62,0.06]
[1753731103873,4.03210223,185.64,185.62,0.06]
[1753731104074,4.03210223,185.63,185.62,0.06]
[1753731104479,4.03210223,185.63,185.62,5.67108871]
[1753731104911,4.03210223,185.63,185.62,8.78539482]
[1753731105285,4.03210223,185.63,185.62,0.06]
[1753731106185,9.41916251,185.63,185.62,0.06]
[1753731106404,4.03210223,185.63,185.62,0.06]
[1753731107307,4.03210223,185.63,185.62,8.78539482]
[1753731107809,4.03286183,185.63,185.62,8.78539482]
[1753731109014,4.03286183,185.63,185.62,0.73]
[1753731110203,4.03286183,185.63,185.62,8.78539482]
[1753731110511,4.03325964,185.63,185.62,8.78539482]
[1753731112892,4.03325964,185.63,185.62,14.71148037]
[1753731113297,4.03322815,185.63,185.62,14.71148037]
[1753731114192,0.03,185.67,185.62,14.71148037]
[1753731114388,4.0328739,185.66,185.65,8.05539482]
[1753731114596,4.0328739,185.66,185.65,47.16539482]
[1753731119015,4.0328739,185.66,185.65,46.45539482]
[1753731119706,9.4190637,185.66,185.65,38.4]
[1753731121720,9.4190637,185.66,185.65,46.45539482]
[1753731121721,4.0328739,185.66,185.65,46.45539482]
[1753731122029,4.0328739,185.66,185.65,47.15539482]
[1753731122201,4.0328739,185.66,185.65,52.54187475]
[1753731124140,0.03,185.67,185.66,17.06900711]
[1753731124425,0.03,185.69,185.68,59.17979675]
[1753731124602,0.03,185.73,185.69,16.78468397]
[1753731124928,0.03,185.73,185.72,4.93574017]
[1753731125097,0.03,185.73,185.72,43.31574017]
[1753731125618,0.03,185.73,185.72,44.01574017]
[1753731126011,0.03,185.73,185.72,49.40018987]
[1753731126724,0.03,185.73,185.72,44.01574017]
[1753731127060,0.03,185.73,185.72,44.55418514]
[1753731127203,0.03,185.73,185.72,44.01574017]
[1753731131128,0.03,185.75,185.73,16.78468397]
[1753731131322,0.03,185.75,185.74,43.79412716]
[1753731131623,0.03,185.75,185.74,49.87799708]
[1753731132313,0.03,185.75,185.74,49.42986733]
[1753731134124,0.03,185.75,185.74,44.49412716]
[1753731134330,0.03,185.75,185.74,43.95574017]
[1753731135425,0.03,185.75,185.74,54.27535026]
[1753731135616,0.03,185.75,185.74,48.89148034]
[1753731135815,0.03,185.75,185.74,49.42986733]
[1753731136000,0.03,185.75,185.74,44.49412716]
[1753731136205,0.03,185.75,185.74,43.95574017]
[1753731139724,0.03,185.75,185.74,49.33961009]
[1753731139919,0.03,185.75,185.74,49.87799708]
[1753731142923,0.03,185.75,185.74,54.81373725]
[1753731143443,0.03,185.75,185.74,71.59842122]
[1753731143654,0.03,185.77,185.75,16.78468397]
[1753731143952,0.03,185.77,185.76,65.41449333]
[1753731144159,0.03,185.81,185.8,4.93574017]
[1753731144329,0.03,185.81,185.8,43.15574017]
[1753731147521,0.03,185.81,185.8,43.85574017]
[1753731150524,0.03,185.81,185.8,43.15574017]
[1753731153050,0.75,185.81,185.8,38.22]
[1753731153238,6.13184166,185.81,185.8,38.22]
[1753731155958,11.06758183,185.81,185.8,38.22]
[1753731156349,26.0,185.78,185.73,0.06]
[1753731156657,30.93574017,185.77,185.74,38.22]
[1753731156854,0.72,185.76,185.74,38.22]
[1753731157039,0.72,185.75,185.74,38.22]
[1753731159161,10.11033615,185.75,185.74,38.22]
[1753731159842,10.11159826,185.75,185.74,38.22]
[1753731160959,6.10358008,185.75,185.74,38.22]
[1753731161151,5.38358008,185.75,185.74,38.22]
[1753731161354,9.39337098,185.75,185.74,38.22]
[1753731162160,4.0097909,185.75,185.74,38.22]
[1753731162358,5.38330616,185.76,185.74,38.22]
[1753731165853,149.0,185.8,185.75,5.62574017]
[1753731166052,4.01525386,185.79,185.77,4.93574017]
[1753731166239,149.0,185.8,185.78,38.22]
[1753731166440,4.01801793,185.79,185.78,38.91]
[1753731167755,4.01801793,185.79,185.78,43.84574017]
[1753731167953,149.0,185.8,185.78,43.84574017]
[1753731168133,149.0,185.8,185.79,5.62574017]
[1753731168332,153.02013589,185.8,185.79,5.62574017]
[1753731169054,4.02013589,185.8,185.79,0.69]
[1753731169456,0.03,185.81,185.79,0.69]
[1753731169657,0.03,185.81,185.8,38.22]
[1753731169860,4.05313915,185.81,185.8,38.22]
[1753731170365,0.03,185.81,185.8,38.22]
[1753731170564,4.05313915,185.81,185.8,38.22]
[1753731170765,0.03,185.81,185.8,38.22]
[1753731171067,4.05313915,185.81,185.8,38.22]
[1753731172163,15.09075379,185.81,185.8,38.22]
[1753731172660,17.10298953,185.81,185.73,0.75]
[1753731172863,4.74313915,185.8,185.75,4.93574017]
[1753731173046,9.40559812,185.79,185.76,38.22]
[1753731173240,4.02313915,185.78,185.76,38.22]
[1753731173446,6.10219841,185.8,185.76,43.15574017]
[1753731173655,4.02451289,185.79,185.76,43.84574017]
[1753731174549,4.02451289,185.79,185.77,0.69]
[1753731174757,5.38214267,185.8,185.78,38.22]
[1753731175072,4.02457484,185.79,185.78,38.22]
[1753731176364,9.40699585,185.79,185.78,38.22]
[1753731177569,4.02457484,185.79,185.78,38.22]
[1753731178951,4.02488217,185.79,185.78,38.22]
[1753731179170,5.38222945,185.8,185.78,38.22]
[1753731180951,5.38222945,185.8,185.78,38.91]
[1753731181145,5.38222945,185.8,185.78,38.22]
[1753731181351,4.02510274,185.79,185.78,38.22]
[1753731182066,4.02510274,185.79,185.78,38.91]
[1753731182262,4.02510274,185.79,185.78,38.22]
[1753731182470,4.02496903,185.79,185.78,38.22]
[1753731182650,9.6107092,185.79,185.75,0.06]
[1753731182849,4.93574017,185.77,185.76,38.2]
[1753731183049,9.6107092,185.77,185.76,38.2]
[1753731183348,14.99370968,185.77,185.76,38.2]
[1753731184156,4.02496903,185.77,185.75,0.06]
[1753731184370,4.93574017,185.78,185.76,0.69]
[1753731184569,4.02486254,185.77,185.75,0.06]
[1753731184771,8.96060271,185.77,185.75,0.06]
[1753731184954,4.93574017,185.77,185.75,0.06]
[1753731185150,4.93574017,185.76,185.75,0.06]
[1753731185664,14.99379104,185.76,185.75,0.06]
[1753731185852,19.92953121,185.76,185.75,0.06]
[1753731186350,17.00654108,185.76,185.75,0.06]
[1753731186676,17.29086422,185.76,185.75,0.06]
[1753731186874,22.22660439,185.76,185.75,0.06]
[1753731188852,39.01128836,185.76,185.75,0.06]
[1753731189054,45.55538836,185.76,185.75,0.06]
[1753731189279,83.75538836,185.76,185.75,0.06]
[1753731189604,42.78468397,185.74,185.73,0.06]
[1753731189884,4.93574017,185.66,185.65,38.26]
[1753731190053,10.32192997,185.66,185.65,38.26]
[1753731190252,10.97192997,185.66,185.65,0.06]
[1753731190668,15.27823332,185.66,185.65,0.06]
[1753731190905,32.06291729,185.66,185.65,0.06]
[1753731191078,14.34391018,185.66,185.65,0.06]
[1753731191490,14.99151971,185.66,185.65,0.06]
[1753731191877,15.27584285,185.66,185.65,0.06]
[1753731193909,52.84584285,185.66,185.65,0.06]
[1753731194406,49.47625311,185.66,185.65,0.06]
[1753731194705,53.4896871,185.66,185.65,0.06]
[1753731194886,14.6196871,185.66,185.65,0.06]
[1753731195090,14.33536396,185.66,185.65,0.06]
[1753731195289,36.32192997,185.66,185.65,0.06]
[1753731195902,40.33440924,185.66,185.65,0.06]
[1753731196204,34.94821944,185.66,185.65,0.75]
[1753731196504,34.94697943,185.66,185.65,0.75]
[1753731196685,40.33316923,185.66,185.65,0.75]
[1753731197006,40.33316923,185.66,185.65,0.06]
[1753731197773,34.94697943,185.66,185.65,0.75]
[1753731198001,34.94697943,185.66,185.65,0.06]
[1753731199003,40.33316923,185.66,185.65,0.06]
[1753731201005,34.94697943,185.66,185.65,0.75]
[1753731201210,30.01123926,185.66,185.65,0.75]
[1753731201425,34.94697943,185.66,185.65,0.75]
[1753731201895,40.33316923,185.66,185.65,0.06]
[1753731202486,34.94697943,185.66,185.65,0.75]
[1753731202984,40.98316923,185.66,185.65,0.06]
[1753731203294,17.26977533,185.66,185.65,0.06]
[1753731203698,16.33545219,185.66,185.65,0.06]
[1753731203908,16.33545219,185.66,185.65,0.75]
[1753731204207,8.94697943,185.66,185.65,0.75]
[1753731204528,4.01123926,185.66,185.65,0.75]
[1753731204684,4.93574017,185.69,185.65,0.75]
[1753731204885,4.01123926,185.68,185.65,0.75]
[1753731205610,4.93574017,185.73,185.65,6.1363295]
[1753731205789,6.0006058,185.72,185.67,4.93574017]
[1753731205984,4.00040387,185.71,185.68,4.93574017]
[1753731206193,10.31970474,185.74,185.69,0.69]
[1753731206382,4.00044536,185.73,185.69,5.62574017]
[1753731206584,4.00044536,185.72,185.7,5.62574017]
[1753731206810,4.93574017,185.75,185.68,1.5401]
[1753731206811,4.93574017,185.75,185.71,0.69]
[1753731207019,3.99977935,185.74,185.72,0.69]
[1753731207312,26.0,185.73,185.72,0.69]
[1753731207515,3.99977935,185.73,185.72,0.69]
[1753731207810,26.0,185.73,185.72,0.69]
[1753731207986,29.99977935,185.73,185.72,0.69]
[1753731209488,4.93574017,185.75,185.72,0.69]
[1753731209814,4.0000439,185.74,185.72,0.69]
[1753731211709,4.0000439,185.74,185.73,0.66]
[1753731211903,10.31907534,185.76,185.73,0.66]
[1753731212211,10.31907534,185.76,185.7,10.32073735]
[1753731212212,4.00050302,185.75,185.7,4.93574017]
[1753731212512,8.93624319,185.75,185.71,0.66]
[1753731212714,0.69,185.74,185.69,5.59574017]
[1753731212909,4.69136707,185.74,185.69,4.93574017]
[1753731213130,5.62574017,185.74,185.68,6.47584017]
[1753731213287,34.93708814,185.73,185.69,0.66]
[1753731213487,37.01018878,185.73,185.67,5.59574017]
[1753731214288,4.93574017,185.72,185.67,0.66]
[1753731214535,4.93574017,185.71,185.67,0.66]
[1753731215017,4.93574017,185.72,185.68,0.66]
[1753731215193,4.00351668,185.71,185.68,0.66]
[1753731216992,9.62925685,185.71,185.66,4.93574017]
[1753731217193,4.00351668,185.7,185.66,5.59574017]
[1753731217614,5.62574017,185.71,185.66,5.59574017]
[1753731217797,4.00659205,185.7,185.66,0.66]
[1753731218120,4.00675159,185.69,185.66,5.59574017]
[1753731218286,4.00675159,185.68,185.67,0.66]
[1753731218486,10.32020223,185.72,185.68,0.66]
[1753731218686,4.00734989,185.71,185.66,5.59574017]
[1753731218914,4.00734989,185.7,185.67,0.66]
[1753731219092,4.00734989,185.69,185.67,0.66]
[1753731219414,4.00734989,185.68,185.67,0.66]
[1753731219909,4.00734989,185.7,185.67,0.66]
[1753731220123,4.00734989,185.7,185.66,10.32183151]
[1753731220124,43.13574017,185.75,185.69,4.93574017]
[1753731220424,4.00742327,185.74,185.71,4.93574017]
[1753731220627,11.00879595,185.77,185.72,0.66]
[1753731220796,8.94347078,185.76,185.72,0.66]
[1753731221011,4.00773061,185.75,185.72,0.66]
[1753731221813,4.93574017,185.76,185.72,0.66]
[1753731222028,4.00873249,185.75,185.72,0.66]
[1753731222534,4.00873249,185.75,185.7,10.9807124]
[1753731222535,4.69873249,185.75,185.7,10.9807124]
[1753731222831,35.63447266,185.74,185.68,10.3211296]
[1753731223136,4.00873249,185.73,185.68,10.9811296]
[1753731223320,4.00873249,185.73,185.69,0.66]
[1753731225746,4.00873249,185.72,185.69,0.66]
[1753731225919,37.0096148,185.74,185.69,0.66]
[1753731226122,4.01435437,185.73,185.69,0.66]
[1753731226315,4.01435437,185.72,185.69,0.66]
[1753731226516,4.01435437,185.71,185.69,0.66]
[1753731226821,37.0096148,185.74,185.69,0.66]
[1753731227026,4.01606506,185.73,185.69,0.66]
[1753731227246,4.01606506,185.72,185.69,0.66]
[1753731227426,4.01606506,185.71,185.69,0.66]
[1753731227630,37.0096148,185.74,185.69,0.66]
[1753731227828,4.01782681,185.73,185.69,0.66]
[1753731228143,4.01782681,185.72,185.69,0.66]
[1753731228356,4.01782681,185.71,185.69,0.66]
[1753731228523,37.0096148,185.74,185.69,0.66]
[1753731228845,4.70863069,185.73,185.68,10.3211296]
[1753731229022,4.01863069,185.72,185.68,10.9811296]
[1753731229222,4.01863069,185.72,185.69,5.59574017]
[1753731233646,4.01863069,185.72,185.68,10.3211296]
[1753731234130,4.01863069,185.72,185.69,0.66]
[1753731236737,4.01863069,185.72,185.68,0.66]
[1753731237061,4.70863069,185.72,185.67,48.52153635]
[1753731237352,4.02130742,185.71,185.67,49.18153635]
[1753731237555,0.69,185.71,185.67,49.18153635]
[1753731237918,11.00991496,185.73,185.67,49.18153635]
[1753731238118,26.0,185.74,185.67,44.24579618]
[1753731238119,15.03171054,185.72,185.67,44.24579618]
[1753731238446,4.93574017,185.7,185.65,0.72]
[1753731238633,5.62574017,185.7,185.65,44.2864648]
[1753731238952,4.02250596,185.69,185.66,0.66]
[1753731239147,4.02250596,185.69,185.65,48.56220497]
[1753731239336,4.93574017,185.71,185.67,0.66]
[1753731239671,4.02308278,185.7,185.67,0.66]
[1753731240045,4.02308278,185.7,185.68,0.66]
[1753731240354,5.62574017,185.72,185.68,0.66]
[1753731240355,11.01020551,185.72,185.68,0.66]
[1753731240536,8.9587145,185.71,185.66,5.59574017]
[1753731240850,4.02297433,185.7,185.66,5.59574017]
[1753731241228,4.02297433,185.7,185.66,4.93574017]
[1753731241546,4.02297433,185.7,185.67,0.69]
[1753731241749,4.93574017,185.72,185.67,0.69]
[1753731241953,4.02379248,185.71,185.66,10.32184399]
[1753731242154,4.02379248,185.71,185.68,0.69]
[1753731242329,4.02379248,185.7,185.68,0.69]
[1753731242533,5.59574017,185.72,185.68,0.69]
[1753731242734,4.0245415,185.71,185.66,10.32184399]
[1753731243034,9.62028167,185.7,185.66,0.69]
[1753731243267,4.0245415,185.69,185.67,0.69]
[1753731243425,4.025659,185.69,185.67,0.69]
[1753731244346,4.025659,185.68,185.67,0.69]
[1753731244722,4.025659,185.68,185.65,48.56216599]
[1753731244928,10.9808762,185.7,185.65,43.86574017]
[1753731245154,4.68651314,185.69,185.65,43.86574017]
[1753731245336,4.02651314,185.68,185.65,43.86574017]
[1753731245539,4.02651314,185.68,185.65,38.24]
[1753731245743,10.9808762,185.7,185.65,38.93]
[1753731245951,4.0277382,185.69,185.65,38.93]
[1753731246259,4.0277382,185.68,185.65,38.93]
[1753731246461,4.0277382,185.67,185.65,38.93]
[1753731246644,10.9808762,185.7,185.65,38.93]
[1753731246962,9.62475799,185.69,185.65,38.24]
[1753731247132,4.02901782,185.68,185.65,38.24]
[1753731247328,8.96475799,185.67,185.65,38.24]
[1753731247646,4.02901782,185.66,185.65,38.24]
[1753731248847,9.62475799,185.66,185.65,0.06]
[1753731249153,15.01094779,185.66,185.65,0.06]
[1753731250439,18.64159655,185.66,185.65,0.06]
[1753731250757,24.69136981,185.66,185.65,0.06]
[1753731250969,41.47605378,185.66,185.65,0.06]
[1753731252054,24.69136981,185.66,185.65,0.06]
[1753731252366,20.65807971,185.66,185.65,0.06]
[1753731252754,19.99807971,185.66,185.65,0.06]
[1753731252943,16.36743095,185.66,185.65,0.06]
[1753731253950,14.35094779,185.66,185.65,0.06]
[1753731254147,14.35094779,185.66,185.65,0.75]
[1753731254148,4.02901782,185.66,185.65,0.75]
[1753731254363,4.02901782,185.68,185.65,0.75]
[1753731254681,4.93574017,185.66,185.65,0.06]
[1753731254849,8.96475799,185.66,185.65,0.06]
[1753731255051,9.62475799,185.66,185.65,0.06]
[1753731255255,11.6389594,185.66,185.65,0.06]
[1753731255956,20.65015864,185.66,185.65,0.06]
[1753731256164,17.0251492,185.66,185.65,0.06]
[1753731259078,16.3651492,185.66,185.65,0.06]
[1753731259258,14.35094779,185.66,185.65,0.06]
[1753731259852,15.01094779,185.66,185.65,0.06]
[1753731260778,16.78468397,185.65,185.64,0.06]
[1753731260949,30.93574017,185.63,185.62,0.06]
[1753731261155,34.96475799,185.63,185.62,0.06]
[1753731261565,35.62475799,185.63,185.62,0.06]
[1753731262081,22.17232472,185.61,185.6,1e-08]
[1753731262252,69.60140585,185.61,185.6,1e-08]
[1753731262577,72.27197218,185.61,185.6,1e-08]
[1753731262772,72.27197218,185.61,185.58,0.06]
[1753731262986,26.0,185.54,185.49,0.69]
[1753731263156,4.93574017,185.51,185.49,0.69]
[1753731263491,4.93574017,185.51,185.5,0.69]
[1753731263773,30.3442373,185.53,185.48,0.69]
[1753731263981,4.93574017,185.51,185.49,0.69]
[1753731264457,10.32648781,185.51,185.49,0.69]
[1753731264775,4.93574017,185.51,185.5,0.69]
[1753731264980,10.32628515,185.51,185.5,0.69]
[1753731265585,10.32628515,185.51,185.46,11.44334017]
[1753731265780,10.32628515,185.51,185.48,0.69]
[1753731265972,10.32628515,185.51,185.49,0.69]
[1753731266563,10.32628515,185.51,185.5,0.69]
[1753731266787,4.93574017,185.51,185.5,0.69]
[1753731267451,31.39004974,185.53,185.5,0.69]
[1753731267686,4.93574017,185.52,185.5,0.69]
[1753731268172,36.32615221,185.52,185.5,0.69]
[1753731268680,36.32615221,185.52,185.48,0.69]
[1753731268884,36.32615221,185.52,185.5,0.69]
[1753731269879,10.32628515,185.51,185.5,0.69]
[1753731270081,10.32628515,185.51,185.48,0.69]
[1753731270382,10.32628515,185.51,185.49,0.69]
[1753731271980,10.32628515,185.51,185.49,0.72]
[1753731272686,8.93574058,185.5,185.46,0.92]
[1753731272892,4.93574017,185.49,185.47,0.72]
[1753731273359,4.93574017,185.5,185.46,0.2]
[1753731273681,10.32628515,185.51,185.47,0.72]
[1753731273867,4.93574017,185.5,185.46,0.2]
[1753731274185,4.93574017,185.49,185.46,0.92]
[1753731274583,4.93574017,185.49,185.46,0.2]
[1753731274880,26.0,185.52,185.48,4.93574017]
[1753731275189,4.93574017,185.53,185.49,0.72]
[1753731275364,26.0,185.52,185.49,0.72]
[1753731275556,26.0,185.52,185.5,0.72]
[1753731276299,26.0,185.51,185.48,4.93574017]
[1753731276466,26.0,185.53,185.49,4.93574017]
[1753731276774,30.93574017,185.53,185.47,10.32741038]
[1753731276986,3.99685672,185.52,185.48,5.65574017]
[1753731277166,3.99685672,185.52,185.46,0.2]
[1753731277379,8.93259689,185.52,185.49,0.72]
[1753731277577,4.93574017,185.52,185.49,0.72]
[1753731278006,3.99702262,185.51,185.49,0.72]
[1753731278500,9.38758805,185.51,185.47,0.72]
[1753731278689,3.99702262,185.5,185.48,0.72]
[1753731280299,3.99795826,185.49,185.46,5.85574017]
[1753731280496,36.3263056,185.51,185.46,5.13574017]
[1753731280806,9.64369997,185.5,185.46,0.92]
[1753731280990,3.9979598,185.49,185.46,0.92]
[1753731281185,4.93574017,185.5,185.46,0.92]
[1753731281383,5.64574017,185.48,185.46,0.2]
[1753731281685,26.0,185.51,185.47,5.65574017]
[1753731281891,3.99841884,185.5,185.49,4.93574017]
[1753731282079,3.99841884,185.53,185.49,4.93574017]
[1753731282279,3.99841884,185.52,185.49,4.93574017]
[1753731282480,3.99841884,185.51,185.5,0.72]
[1753731282698,3.99841884,185.51,185.49,4.93574017]
[1753731282888,31.38977506,185.54,185.49,4.93574017]
[1753731283091,3.99889615,185.53,185.49,4.93574017]
[1753731283291,3.99889615,185.52,185.5,0.72]
[1753731283488,3.99889615,185.51,185.5,0.72]
[1753731284101,36.32551523,185.54,185.5,0.72]
[1753731284405,3.99961074,185.53,185.5,0.72]
[1753731284623,29.99961074,185.52,185.51,0.72]
[1753731284784,29.99961074,185.52,185.49,5.65574017]
[1753731284984,26.0,185.52,185.5,0.72]
[1753731285185,4.00049613,185.51,185.5,0.72]
[1753731285397,26.0,185.52,185.5,0.72]
[1753731285597,4.00149604,185.51,185.5,0.72]
[1753731286291,4.00149604,185.51,185.48,5.65574017]
[1753731286491,26.0,185.52,185.49,4.93574017]
[1753731286700,4.00265224,185.51,185.49,0.72]
[1753731286901,26.0,185.52,185.49,0.72]
[1753731287101,4.00265135,185.51,185.49,0.72]
[1753731287303,4.00265135,185.51,185.46,0.2]
[1753731287304,4.71419571,185.5,185.46,0.2]
[1753731287615,4.93574017,185.48,185.46,0.2]
[1753731287788,4.00492346,185.47,185.46,0.2]
[1753731288592,9.65066363,185.47,185.46,0.2]
[1753731288991,4.00492346,185.47,185.46,0.2]
[1753731289910,4.71492346,185.47,185.46,0.2]
[1753731290213,9.65066363,185.47,185.46,0.2]
[1753731290396,4.00492346,185.47,185.46,0.2]
[1753731290712,18.31448397,185.53,185.46,0.2]
[1753731290713,5.38970597,185.54,185.46,11.78693826]
[1753731290897,4.00768021,185.53,185.52,4.93574017]
[1753731291291,4.00768021,185.53,185.51,4.93574017]
[1753731291492,30.00768021,185.52,185.51,4.93574017]
[1753731291703,30.00768021,185.52,185.48,0.72]
[1753731291894,4.00768021,185.51,185.47,1.5413]
[1753731292097,4.00768021,185.5,185.46,5.85574017]
[1753731292305,4.00768021,185.49,185.47,4.93574017]
[1753731292509,4.01150306,185.48,185.46,0.2]
[1753731292826,26.0,185.5,185.46,0.2]
[1753731293135,4.01165713,185.49,185.47,0.72]
[1753731293301,4.01165713,185.48,185.47,0.72]
[1753731293501,4.01165713,185.48,185.47,4.93574017]
[1753731293932,0.03,185.56,185.47,4.93574017]
[1753731294220,4.01250953,185.55,185.53,4.93574017]
[1753731294428,6.04876429,185.56,185.53,4.93574017]
[1753731294429,4.01250953,185.54,185.53,4.93574017]
[1753731294930,4.01250953,185.54,185.53,5.65574017]
[1753731295305,4.01250953,185.54,185.51,4.93574017]
[1753731295495,4.01250953,185.53,185.51,5.65574017]
[1753731295701,4.01537834,185.52,185.51,5.65574017]
[1753731296805,4.01537834,185.52,185.51,0.72]
[1753731297126,4.01537834,185.52,185.51,5.65574017]
[1753731297922,26.0,185.54,185.51,5.65574017]
[1753731298124,4.01738884,185.53,185.51,5.65574017]
[1753731298427,0.03,185.56,185.52,5.65574017]
[1753731298724,4.01874256,185.55,185.53,5.65574017]
[1753731298926,0.03,185.56,185.54,4.93574017]
[1753731299235,4.01873966,185.55,185.54,4.93574017]
[1753731300156,4.01873966,185.55,185.54,5.65574017]
[1753731300441,4.01873966,185.55,185.54,11.58438088]
[1753731300629,0.03,185.56,185.54,11.58438088]
[1753731300842,0.03,185.56,185.55,5.65574017]
[1753731301020,0.03,185.56,185.55,4.93574017]
[1753731301221,0.03,185.56,185.54,5.65574017]
[1753731301621,4.05232129,185.56,185.54,5.65574017]